bitfinex/quotes_SOLUSD_20220118
["timestamp","ask_amount","ask_price","bid_price","bid_amount"]
[1642495034160,2.888,138.47,138.44,2.05705532]
[1642495034363,6.06439994,138.46,138.43,2.05705532]
[1642495034761,3.138,138.48,138.43,2.05705532]
[1642495035065,0.25,138.48,138.43,12.88845532]
[1642495035262,10.39,138.5,138.43,12.88845532]
[1642495035662,0.25,138.49,138.43,12.88845532]
[1642495035864,10.39,138.5,138.43,12.88845532]
[1642495036063,2.888,138.49,138.43,12.88845532]
[1642495036263,10.39,138.5,138.43,12.88845532]
[1642495036464,10.39,138.5,138.43,10.8314]
[1642495036664,10.39,138.5,138.42,2.05705532]
[1642495036863,2.888,138.49,138.43,0.25]
[1642495037565,2.888,138.49,138.43,2.05705532]
[1642495037566,13.7221,138.49,138.43,2.05705532]
[1642495037764,0.25,138.48,138.43,2.05705532]
[1642495037966,2.888,138.47,138.43,2.05705532]
[1642495038363,0.25,138.46,138.43,2.05705532]
[1642495038590,5.92019997,138.45,138.41,2.05705532]
[1642495038789,8.95239994,138.45,138.42,0.25]
[1642495038994,6.06439994,138.45,138.41,2.05705532]
[1642495039590,0.25,138.44,138.41,2.05705532]
[1642495039791,2.888,138.43,138.41,2.05705532]
[1642495039992,3.03219997,138.42,138.41,2.05705532]
[1642495040890,3.03219997,138.42,138.39,2.05705532]
[1642495041291,3.03219997,138.41,138.39,2.05705532]
[1642495041992,2.888,138.43,138.39,2.05705532]
[1642495042192,2.89,138.44,138.39,2.05705532]
[1642495042392,10.8362,138.47,138.39,2.05705532]
[1642495042593,2.888,138.46,138.39,2.05705532]
[1642495043192,2.888,138.48,138.4,2.05705532]
[1642495043395,13.278,138.48,138.4,2.05705532]
[1642495043793,19.278,138.48,138.4,2.05705532]
[1642495044093,10.8364,138.46,138.4,2.05705532]
[1642495044294,2.888,138.45,138.4,2.05705532]
[1642495044695,2.888,138.46,138.4,2.05705532]
[1642495044895,2.888,138.46,138.39,2.05705532]
[1642495045298,0.25,138.45,138.39,2.05705532]
[1642495045497,2.888,138.44,138.39,2.05705532]
[1642495045898,0.25,138.43,138.39,8.05705532]
[1642495046098,2.888,138.42,138.4,2.05705532]
[1642495046298,0.25,138.41,138.4,2.05705532]
[1642495046501,3.03219997,138.41,138.4,2.05705532]
[1642495047000,2.888,138.42,138.4,2.05705532]
[1642495047202,0.25,138.41,138.38,2.05705532]
[1642495047404,0.25,138.43,138.38,2.05705532]
[1642495047601,2.89,138.42,138.38,2.05705532]
[1642495048406,2.89,138.42,138.35,3.96552478]
[1642495048407,2.89,138.42,138.37,2.05705532]
[1642495050205,2.89,138.42,138.38,2.05705532]
[1642495051007,2.89,138.43,138.38,2.05705532]
[1642495051308,2.89,138.43,138.37,2.05705532]
[1642495051509,2.89,138.44,138.37,2.05705532]
[1642495051706,26.8031,138.45,138.37,2.05705532]
[1642495051907,2.89,138.45,138.37,8.05705532]
[1642495052307,2.89,138.45,138.38,0.25]
[1642495052508,2.89,138.45,138.38,2.05705532]
[1642495052908,2.89,138.45,138.38,8.05705532]
[1642495053107,0.25,138.44,138.38,8.05705532]
[1642495053307,2.888,138.43,138.38,2.05705532]
[1642495053510,2.89,138.45,138.39,2.05705532]
[1642495054206,2.889,138.45,138.39,2.05705532]
[1642495054408,13.7262,138.45,138.39,2.05705532]
[1642495055511,13.7262,138.45,138.38,2.05705532]
[1642495055910,2.889,138.45,138.38,2.05705532]
[1642495056310,2.889,138.45,138.39,40.43364779]
[1642495056610,35.3608,138.46,138.39,2.30705532]
[1642495056811,24.9708,138.46,138.39,5.19505532]
[1642495057109,24.9708,138.46,138.39,2.30705532]
[1642495057318,24.9708,138.46,138.39,8.30705532]
[1642495057512,30.9708,138.46,138.4,2.05705532]
[1642495058313,2.888,138.45,138.4,2.05705532]
[1642495058814,8.888,138.45,138.4,2.05705532]
[1642495059214,8.888,138.45,138.39,2.05705532]
[1642495060015,2.888,138.45,138.39,2.05705532]
[1642495060215,2.888,138.45,138.38,2.05705532]
[1642495060416,8.888,138.45,138.38,2.05705532]
[1642495060618,2.888,138.45,138.38,2.05705532]
[1642495060817,8.888,138.45,138.38,2.05705532]
[1642495061315,2.888,138.45,138.39,0.25]
[1642495061524,2.888,138.46,138.39,0.25]
[1642495061715,2.888,138.46,138.38,2.05705532]
[1642495062117,2.888,138.46,138.39,2.05705532]
[1642495063122,2.888,138.46,138.4,0.25]
[1642495063919,2.888,138.46,138.39,2.05705532]
[1642495064119,13.278,138.47,138.41,2.05705532]
[1642495064319,24.1135,138.47,138.41,2.05705532]
[1642495064744,1.78905272,138.46,138.41,2.05705532]
[1642495064943,2.888,138.45,138.4,2.05705532]
[1642495065243,3.138,138.45,138.4,2.05705532]
[1642495065445,10.39,138.44,138.4,2.05705532]
[1642495065646,2.888,138.43,138.4,2.05705532]
[1642495065845,3.138,138.43,138.4,2.05705532]
[1642495066048,3.138,138.43,138.38,4.11524867]
[1642495066049,3.138,138.43,138.38,2.05705532]
[1642495066448,3.138,138.43,138.38,8.05705532]
[1642495066649,3.138,138.43,138.38,2.05705532]
[1642495066850,19.9768,138.43,138.38,8.05705532]
[1642495067050,19.9768,138.43,138.38,2.05705532]
[1642495067250,10.39,138.42,138.38,2.05705532]
[1642495067452,2.89,138.41,138.35,3.96552478]
[1642495067653,10.39,138.4,138.35,3.96552478]
[1642495067852,13.9839,138.39,138.35,3.96552478]
[1642495068051,10.39,138.38,138.35,3.96552478]
[1642495068255,3.14,138.37,138.35,3.96552478]
[1642495068451,10.508,138.37,138.32,3.96552478]
[1642495068652,5.56439994,138.36,138.32,3.96552478]
[1642495069653,5.56439994,138.36,138.29,3.96552478]
[1642495070653,5.56439994,138.36,138.3,0.25]
[1642495070856,5.56439994,138.36,138.29,3.96552478]
[1642495071456,10.85639994,138.36,138.29,3.96552478]
[1642495071654,10.8467,138.34,138.29,3.96552478]
[1642495071855,2.891,138.33,138.3,3.96552478]
[1642495072058,5.56439994,138.32,138.3,3.96552478]
[1642495072656,5.56439994,138.32,138.28,51.29081237]
[1642495072858,5.56439994,138.32,138.29,0.25]
[1642495073254,5.56439994,138.32,138.3,0.5]
[1642495073655,5.56439994,138.32,138.3,8.08234406]
[1642495073955,5.56439994,138.32,138.31,0.25]
[1642495074956,3.03219997,138.32,138.31,0.5]
[1642495075156,10.39,138.36,138.3,8.08234406]
[1642495075357,10.39,138.36,138.31,4.11681928]
[1642495076257,0.25,138.35,138.3,3.96552478]
[1642495076456,2.891,138.34,138.3,3.96552478]
[1642495077457,2.891,138.35,138.28,3.96552478]
[1642495077658,10.8462,138.34,138.28,3.96552478]
[1642495077961,2.892,138.33,138.28,3.96552478]
[1642495078159,8.575,138.33,138.28,3.96552478]
[1642495078358,5.683,138.33,138.27,8.08234406]
[1642495079159,5.683,138.33,138.27,3.96552478]
[1642495079361,2.892,138.32,138.26,8.08234406]
[1642495080367,2.892,138.32,138.27,0.25]
[1642495080563,2.892,138.34,138.27,0.25]
[1642495081166,2.892,138.34,138.26,8.08234406]
[1642495081363,9.92,138.34,138.28,4.11681928]
[1642495081865,20.7658,138.34,138.28,4.11681928]
[1642495082265,0.25,138.33,138.28,4.11681928]
[1642495082465,2.892,138.32,138.25,4.11681928]
[1642495082966,10.851,138.3,138.25,4.11681928]
[1642495083165,2.892,138.29,138.25,4.11681928]
[1642495083364,2.892,138.3,138.25,4.11681928]
[1642495083768,0.25,138.29,138.22,4.11681928]
[1642495083965,2.892,138.28,138.22,4.11681928]
[1642495084668,13.7428,138.28,138.22,4.11681928]
[1642495085067,10.8508,138.28,138.22,4.11681928]
[1642495085267,24.4773,138.31,138.23,3.142]
[1642495085471,34.8673,138.31,138.23,2.892]
[1642495085667,13.741,138.3,138.19,2.892]
[1642495085867,34.8673,138.31,138.19,9.142]
[1642495086066,34.8673,138.31,138.21,10.8494]
[1642495086269,10.39,138.31,138.23,48.02445928]
[1642495086466,10.39,138.31,138.24,2.892]
[1642495086669,10.39,138.31,138.24,3.142]
[1642495087068,10.39,138.31,138.24,0.25]
[1642495087268,21.238,138.31,138.24,11.0956]
[1642495087470,21.238,138.31,138.22,2.892]
[1642495087671,21.238,138.31,138.23,0.25]
[1642495088270,21.238,138.31,138.22,8.892]
[1642495088671,2.892,138.3,138.22,8.892]
[1642495088874,13.7411,138.3,138.22,8.892]
[1642495089071,13.7411,138.3,138.22,2.892]
[1642495089474,13.7411,138.3,138.22,13.7411]
[1642495089672,2.892,138.3,138.23,0.25]
[1642495091101,2.892,138.32,138.23,11.0978]
[1642495091302,10.39,138.33,138.25,39.94097433]
[1642495091503,2.892,138.36,138.26,74.372]
[1642495091701,207.21778905,138.37,138.26,80.375]
[1642495092001,207.21778905,138.37,138.26,88.18563103]
[1642495092198,207.21778905,138.37,138.26,97.025]
[1642495092900,2.891,138.4,138.26,97.025]
[1642495093200,10.39,138.39,138.26,36.1295]
[1642495093399,2.891,138.38,138.26,30.3765]
[1642495094301,21.4834,138.37,138.26,19.7365]
[1642495094501,2.891,138.36,138.26,19.7365]
[1642495095002,2.891,138.36,138.26,13.7365]
[1642495095202,2.891,138.36,138.26,19.7365]
[1642495095702,36.0569,138.37,138.26,19.7365]
[1642495095903,10.39,138.37,138.3,10.8421]
[1642495096305,10.39,138.37,138.31,0.25]
[1642495096605,10.39,138.37,138.3,10.8421]
[1642495096903,2.891,138.36,138.26,32.4018]
[1642495097103,2.891,138.36,138.26,29.5098]
[1642495097303,2.891,138.36,138.27,0.25]
[1642495097904,13.7354,138.36,138.27,0.25]
[1642495098104,0.25,138.35,138.27,0.25]
[1642495098304,2.892,138.34,138.27,0.25]
[1642495098705,2.892,138.34,138.26,0.25]
[1642495099111,2.892,138.34,138.26,44.56582444]
[1642495099308,2.892,138.34,138.26,50.56582444]
[1642495099507,4.10799672,138.45,138.26,50.56582444]
[1642495099508,2.892,138.36,138.26,50.56582444]
[1642495099808,13.282,138.39,138.3,57.67799852]
[1642495100712,13.282,138.39,138.31,11.0914]
[1642495100912,2.891,138.41,138.31,20.1164]
[1642495101111,10.39,138.43,138.31,26.1164]
[1642495102814,13.28,138.43,138.31,26.1164]
[1642495103511,13.28,138.43,138.32,71.48]
[1642495103714,13.28,138.43,138.35,10.8378]
[1642495103914,13.28,138.43,138.36,37.12325686]
[1642495104114,13.28,138.43,138.36,37.37325686]
[1642495104315,2.89,138.45,138.36,43.37325686]
[1642495104515,13.28,138.46,138.36,43.37325686]
[1642495104814,2.888,138.48,138.38,10.8363]
[1642495105014,2.888,138.48,138.39,47.75756023]
[1642495105214,266.4378084,138.49,138.39,47.75756023]
[1642495105215,266.4378084,138.49,138.39,48.00756023]
[1642495105415,2.888,138.48,138.36,6.0]
[1642495105612,25.4839,138.48,138.37,6.0]
[1642495105813,31.4839,138.48,138.35,2.888]
[1642495106014,55.5304,138.48,138.35,2.888]
[1642495106216,55.5304,138.48,138.35,8.888]
[1642495106417,10.39,138.47,138.35,46.8467409]
[1642495106617,2.888,138.46,138.37,10.8368]
[1642495106821,3.138,138.46,138.37,10.8368]
[1642495107619,10.8372,138.45,138.37,10.8368]
[1642495107919,3.138,138.44,138.37,10.8368]
[1642495108119,3.138,138.44,138.35,6.0]
[1642495108320,3.138,138.44,138.33,28.9712]
[1642495108519,12.62815272,138.43,138.34,0.25]
[1642495108720,2.89,138.42,138.34,0.25]
[1642495108920,2.89,138.42,138.31,2.89]
[1642495109220,2.89,138.42,138.31,39.0215]
[1642495109425,2.89,138.43,138.32,0.25]
[1642495109822,0.25,138.42,138.32,0.25]
[1642495110021,2.89,138.41,138.32,0.25]
[1642495110422,2.89,138.41,138.34,10.8391]
[1642495110721,2.89,138.43,138.35,38.6770511]
[1642495110923,2.89,138.43,138.35,38.9270511]
[1642495111225,2.89,138.44,138.35,45.1870511]
[1642495111425,2.89,138.45,138.35,45.1870511]
[1642495111627,3.14,138.45,138.35,45.1870511]
[1642495112624,3.14,138.45,138.38,35.0188662]
[1642495113826,3.14,138.45,138.35,6.25]
[1642495114024,13.9772,138.45,138.38,10.8366]
[1642495114227,13.7272,138.45,138.35,6.25]
[1642495114425,13.7272,138.45,138.35,0.25]
[1642495114626,13.7272,138.45,138.35,6.25]
[1642495114825,13.7272,138.45,138.36,37.37178573]
[1642495115230,13.7272,138.45,138.37,0.25]
[1642495115632,13.7272,138.45,138.37,11.0874]
[1642495117358,0.25,138.44,138.37,11.0874]
[1642495117657,0.25,138.44,138.37,10.8374]
[1642495119059,0.25,138.44,138.37,16.8374]
[1642495119458,0.25,138.44,138.37,10.8374]
[1642495119661,2.89,138.43,138.37,10.8374]
[1642495119857,2.89,138.43,138.35,10.8384]
[1642495120061,2.89,138.43,138.35,11.0884]
[1642495125268,2.89,138.43,138.35,17.0884]
[1642495125667,3.14,138.44,138.35,17.0884]
[1642495126267,2.89,138.44,138.35,17.0884]
[1642495126669,2.89,138.45,138.37,41.20002605]
[1642495126869,2.89,138.45,138.38,11.0858]
[1642495127069,26.1348,138.46,138.38,11.0858]
[1642495127971,36.9713,138.46,138.38,11.0858]
[1642495128570,36.9713,138.46,138.38,0.25]
[1642495130472,10.39,138.45,138.37,10.8375]
[1642495130675,10.8394,138.43,138.36,2.89]
[1642495130874,2.89,138.42,138.36,2.89]
[1642495131176,2.89,138.42,138.31,2.89]
[1642495131380,27.5034,138.42,138.32,42.3823168]
[1642495131575,27.5034,138.42,138.31,9.14]
[1642495131773,11.0902,138.41,138.31,13.10552478]
[1642495131974,2.891,138.4,138.31,10.21552478]
[1642495132573,2.891,138.4,138.32,40.19472813]
[1642495132774,2.891,138.4,138.33,0.25]
[1642495133174,2.891,138.4,138.33,11.0906]
[1642495133576,24.6134,138.42,138.33,11.0906]
[1642495133577,24.6134,138.42,138.35,40.64117931]
[1642495133776,24.6134,138.42,138.36,0.25]
[1642495134177,24.6134,138.42,138.36,10.838]
[1642495134379,34.4033,138.43,138.37,0.25]
[1642495134577,24.0133,138.43,138.37,0.25]
[1642495135284,13.28,138.45,138.36,0.25]
[1642495135580,24.1171,138.45,138.38,49.49313602]
[1642495137579,24.1171,138.45,138.38,60.32973602]
[1642495138180,13.28,138.45,138.38,60.32973602]
[1642495139799,24.1174,138.45,138.39,0.25]
[1642495140787,0.25,138.44,138.36,0.25]
[1642495140985,13.7292,138.43,138.36,0.25]
[1642495141585,2.89,138.43,138.36,11.0882]
[1642495142185,2.89,138.45,138.36,19.9782]
[1642495142387,2.89,138.45,138.36,20.2382]
[1642495143391,24.3742,138.46,138.36,20.2382]
[1642495143617,2.89,138.47,138.37,71.48]
[1642495143817,2.89,138.47,138.4,82.3134]
[1642495144017,6.99599672,138.48,138.41,44.62142975]
[1642495144218,2.888,138.48,138.41,44.87142975]
[1642495144518,2.888,138.48,138.41,51.13142975]
[1642495144718,26.152,138.49,138.41,51.13142975]
[1642495144920,2.888,138.49,138.41,61.96582975]
[1642495146019,2.888,138.5,138.41,61.96582975]
[1642495146720,0.25,138.49,138.41,61.96582975]
[1642495146922,2.888,138.48,138.41,17.3444]
[1642495147320,2.888,138.48,138.41,11.3444]
[1642495147521,2.888,138.48,138.41,17.3444]
[1642495147924,2.888,138.48,138.42,43.93993295]
[1642495148124,2.888,138.49,138.43,11.0827]
[1642495148325,23.7237,138.5,138.43,17.3427]
[1642495148526,10.10799672,138.51,138.43,17.3427]
[1642495148728,4.10799672,138.51,138.45,37.36681209]
[1642495148924,4.10799672,138.52,138.45,44.95481209]
[1642495149125,4.10799672,138.52,138.46,11.0804]
[1642495149327,4.10799672,138.52,138.46,17.3404]
[1642495149828,4.10799672,138.52,138.47,2.888]
[1642495150027,4.10799672,138.52,138.48,35.12766806]
[1642495150231,4.10799672,138.53,138.48,42.76266806]
[1642495150425,4.10799672,138.53,138.48,49.02266806]
[1642495150825,4.10799672,138.53,138.48,42.76266806]
[1642495151024,4.10799672,138.53,138.48,59.84986806]
[1642495151328,9.36040126,138.62,138.51,91.14708285]
[1642495151525,10.8809,138.63,138.51,91.14708285]
[1642495151526,17.95157744,138.71,138.58,62.0]
[1642495151728,2.884,138.75,138.64,129.83]
[1642495151926,16.45838405,138.69,138.64,41.3825]
[1642495152127,16.45838405,138.69,138.65,140.47]
[1642495152327,55.42350621,138.69,138.65,149.614]
[1642495152526,16.45838405,138.69,138.65,149.614]
[1642495152724,16.45838405,138.69,138.67,129.83]
[1642495152927,16.45838405,138.69,138.68,21.7007]
[1642495153125,2.884,138.77,138.68,143.854]
[1642495153326,40.33943839,138.79,138.72,129.83]
[1642495153529,38.41798535,138.78,138.73,143.102]
[1642495153727,38.41798535,138.78,138.73,140.47]
[1642495153927,38.41798535,138.78,138.73,146.47]
[1642495154127,38.41798535,138.78,138.74,10.8073]
[1642495154327,2.882,138.84,138.75,10.64]
[1642495154528,2.882,138.84,138.75,140.47]
[1642495154727,2.882,138.84,138.75,146.73]
[1642495154928,2.882,138.84,138.75,146.47]
[1642495155128,2.882,138.84,138.75,151.0274]
[1642495155328,2.882,138.84,138.76,0.25]
[1642495155728,2.88,138.88,138.77,10.39]
[1642495155929,2.88,138.92,138.77,10.39]
[1642495156129,40.15585903,138.91,138.81,10.8013]
[1642495156330,2.88,138.9,138.81,16.8013]
[1642495156731,2.88,138.9,138.82,0.25]
[1642495156931,40.15585903,138.91,138.83,10.39]
[1642495157334,40.15585903,138.91,138.84,11.0492]
[1642495157532,40.15585903,138.91,138.84,21.4392]
[1642495157732,40.15585903,138.91,138.84,27.4392]
[1642495158934,2.88,138.9,138.84,16.64]
[1642495159333,40.15585903,138.91,138.84,16.64]
[1642495159736,3.13,138.9,138.81,36.0023]
[1642495159934,3.13,138.9,138.75,129.83]
[1642495160134,2.88,138.9,138.77,10.0]
[1642495160333,0.25,138.89,138.78,10.39]
[1642495160536,42.25197851,138.87,138.78,10.39]
[1642495160738,2.88,138.86,138.77,0.26]
[1642495160934,3.13,138.86,138.79,10.805]
[1642495161538,53.0,138.84,138.72,13.271]
[1642495161736,42.68606137,138.83,138.68,10.39]
[1642495161935,10.8098,138.81,138.68,37.51893455]
[1642495162135,47.11209074,138.79,138.7,10.8109]
[1642495162334,2.882,138.78,138.71,40.55383928]
[1642495162535,2.882,138.78,138.7,10.8109]
[1642495162936,2.882,138.78,138.71,0.25]
[1642495164137,57.92279074,138.79,138.71,0.25]
[1642495164338,63.92279074,138.79,138.71,0.25]
[1642495164539,57.92279074,138.79,138.71,0.25]
[1642495165140,0.25,138.78,138.71,11.0598]
[1642495165342,3.132,138.78,138.71,10.8098]
[1642495165740,3.132,138.78,138.72,0.25]
[1642495165943,0.25,138.78,138.71,10.8098]
[1642495166142,3.132,138.78,138.69,2.882]
[1642495166440,3.132,138.78,138.69,13.6929]
[1642495166640,12.17905272,138.77,138.69,2.882]
[1642495166843,3.133,138.76,138.69,2.882]
[1642495167139,10.39,138.75,138.59,35.68]
[1642495167339,40.90201219,138.74,138.6,44.55558958]
[1642495167540,21.2059,138.73,138.63,10.8159]
[1642495167740,37.23505214,138.71,138.64,43.46746011]
[1642495168148,37.23505214,138.71,138.65,0.25]
[1642495168341,6.0,138.73,138.65,0.25]
[1642495168342,2.884,138.75,138.65,3.134]
[1642495168546,2.883,138.76,138.65,3.134]
[1642495168742,2.883,138.76,138.65,3.394]
[1642495168743,6.0,138.75,138.65,3.394]
[1642495168943,2.883,138.74,138.65,3.394]
[1642495169142,2.883,138.74,138.65,14.2081]
[1642495169341,51.31898316,138.78,138.65,20.2081]
[1642495169542,51.31898316,138.78,138.67,48.28219782]
[1642495169773,57.31898316,138.78,138.68,2.883]
[1642495169941,54.43498316,138.78,138.68,3.133]
[1642495170143,2.883,138.81,138.69,90.94]
[1642495170348,2.882,138.83,138.7,3.132]
[1642495170547,2.882,138.88,138.72,71.48]
[1642495170745,2.882,138.88,138.73,11.53]
[1642495170944,2.882,138.88,138.73,11.78]
[1642495171148,47.50992705,138.87,138.73,17.78]
[1642495171348,3.13,138.86,138.73,15.16]
[1642495171548,10.8069,138.84,138.73,25.7044]
[1642495171846,2.882,138.83,138.73,25.7044]
[1642495172049,45.28787069,138.82,138.73,14.65]
[1642495172247,2.882,138.81,138.68,2.882]
[1642495172447,11.532,138.81,138.62,8.65]
[1642495172648,19.32105272,138.81,138.63,2.883]
[1642495172847,1.78905272,138.8,138.63,8.883]
[1642495173049,11.533,138.79,138.63,8.883]
[1642495173251,36.61260401,138.78,138.64,45.64299272]
[1642495173449,2.883,138.77,138.64,45.64299272]
[1642495173653,43.82758756,138.75,138.67,42.72893259]
[1642495173850,3.133,138.74,138.68,0.25]
[1642495174949,3.133,138.74,138.67,40.28300055]
[1642495175150,3.133,138.74,138.67,40.53300055]
[1642495175450,3.133,138.74,138.68,0.25]
[1642495175651,2.883,138.74,138.68,11.0617]
[1642495175852,2.883,138.74,138.68,11.3217]
[1642495176453,2.883,138.74,138.68,11.0617]
[1642495176653,43.82758756,138.75,138.68,11.0617]
[1642495177280,2.883,138.76,138.68,11.0617]
[1642495177453,2.883,138.77,138.68,13.9447]
[1642495177655,2.883,138.77,138.68,11.0617]
[1642495177857,2.883,138.77,138.68,82.8017]
[1642495178261,2.883,138.77,138.68,88.8017]
[1642495178456,74.5954,138.79,138.69,2.883]
[1642495178655,74.5954,138.79,138.7,10.8099]
[1642495178859,24.9746,138.79,138.71,2.882]
[1642495179257,24.9746,138.79,138.72,0.25]
[1642495179457,36.04073578,138.79,138.72,0.25]
[1642495179856,42.04073578,138.79,138.72,0.25]
[1642495180056,6.0,138.79,138.72,0.25]
[1642495180256,76.599,138.8,138.72,0.25]
[1642495180257,6.0,138.8,138.72,0.25]
[1642495180457,2.882,138.82,138.72,0.25]
[1642495180657,97.6454,138.89,138.72,0.25]
[1642495180658,11.532,138.86,138.73,71.48]
[1642495180859,0.25,138.85,138.74,0.25]
[1642495181056,2.88,138.84,138.74,37.54122017]
[1642495181259,0.25,138.83,138.74,43.80122017]
[1642495181460,2.88,138.84,138.74,43.80122017]
[1642495181858,2.88,138.84,138.75,71.48]
[1642495182059,41.25391727,138.85,138.75,71.48]
[1642495182258,41.25391727,138.85,138.76,0.25]
[1642495182459,41.25391727,138.85,138.77,35.82751873]
[1642495182858,4.10658025,138.84,138.78,0.25]
[1642495183059,6.98658025,138.84,138.77,35.82751873]
[1642495183260,6.98658025,138.84,138.75,6.26]
[1642495183462,6.98658025,138.84,138.75,16.8063]
[1642495183761,6.98658025,138.84,138.76,0.25]
[1642495184161,6.98658025,138.84,138.76,7.245]
[1642495184360,4.10658025,138.84,138.77,74.36]
[1642495184661,4.10658025,138.84,138.79,10.8022]
[1642495184860,4.10658025,138.84,138.8,0.25]
[1642495185259,4.10658025,138.84,138.79,64.2020308]
[1642495185662,4.10658025,138.83,138.8,0.25]
[1642495186066,4.10658025,138.83,138.81,0.5]
[1642495186862,5.81439994,138.82,138.76,2.88]
[1642495187063,47.03436675,138.81,138.73,38.99080372]
[1642495187363,0.25,138.8,138.73,55.79820372]
[1642495187963,2.05352654,138.79,138.73,55.79820372]
[1642495188364,2.05352654,138.79,138.74,0.25]
[1642495188565,46.67501762,138.78,138.74,0.25]
[1642495188762,46.67501762,138.78,138.73,6.0]
[1642495188963,48.72854416,138.78,138.73,6.0]
[1642495189166,48.72854416,138.78,138.7,6.0]
[1642495189363,48.72854416,138.78,138.69,2.882]
[1642495190164,48.72854416,138.78,138.7,0.25]
[1642495190367,48.72854416,138.78,138.69,2.882]
[1642495190565,3.133,138.77,138.69,13.6931]
[1642495190764,47.234547,138.75,138.69,13.9531]
[1642495191465,47.234547,138.75,138.69,2.882]
[1642495191767,3.133,138.74,138.69,2.882]
[1642495192164,1.78905272,138.73,138.69,2.882]
[1642495192393,48.75030214,138.71,138.66,1.78471682]
[1642495192692,2.884,138.7,138.63,1.78471682]
[1642495192894,11.784,138.7,138.63,1.78471682]
[1642495193793,10.8192,138.68,138.6,46.5913148]
[1642495193995,44.25639201,138.68,138.63,43.04105531]
[1642495194195,4.93752654,138.69,138.63,43.04105531]
[1642495194397,4.93752654,138.69,138.64,0.25]
[1642495194398,2.05352654,138.69,138.64,0.25]
[1642495194798,2.05352654,138.7,138.64,0.25]
[1642495194996,0.25,138.69,138.63,6.0]
[1642495195196,3.134,138.69,138.6,1.78471682]
[1642495195795,3.134,138.69,138.62,1.78471682]
[1642495196095,38.29847699,138.68,138.62,38.81982469]
[1642495196295,38.29847699,138.68,138.63,0.25]
[1642495196495,41.18247699,138.68,138.63,0.25]
[1642495197099,38.29847699,138.68,138.63,0.25]
[1642495197298,2.884,138.68,138.63,0.25]
[1642495197901,2.30352654,138.69,138.63,0.25]
[1642495198299,45.5838765,138.69,138.63,0.25]
[1642495198599,43.53034996,138.69,138.61,10.8173]
[1642495198800,2.884,138.68,138.62,0.25]
[1642495199201,2.884,138.68,138.6,7.78471682]
[1642495199602,0.25,138.67,138.6,6.0]
[1642495199800,45.60838046,138.65,138.59,44.08497478]
[1642495200001,45.60838046,138.65,138.59,38.08497478]
[1642495200205,2.05352654,138.69,138.6,10.818]
[1642495200401,2.884,138.68,138.6,16.818]
[1642495200602,2.884,138.68,138.61,0.25]
[1642495200902,2.05352654,138.69,138.61,0.25]
[1642495201100,2.884,138.68,138.61,0.25]
[1642495201301,45.23072942,138.67,138.61,0.25]
[1642495202103,4.93752654,138.69,138.61,11.0672]
[1642495202306,2.05352654,138.69,138.62,71.48]
[1642495202505,2.05352654,138.69,138.62,80.179]
[1642495202705,2.05352654,138.69,138.63,0.25]
[1642495203103,2.05352654,138.69,138.63,41.5206248]
[1642495203303,2.05352654,138.69,138.63,47.7806248]
[1642495203503,2.05352654,138.69,138.64,10.8139]